Cogmind - Beta 16.1 @@@ ROGUE MODE // 2026.04.29 @ 00:53:34 Player: KURIIRI Result: Destroyed by L-31 Rogue with Katana Performance ------------- Evolutions (0) 0 Regions Visited (3) 600 Robots Destroyed (43) 215 Value Destroyed (1008) 1008 Prototype IDs (13) 260 Alien Tech Used (0) 0 Bonus (0) 0 TOTAL SCORE: 2083 Bonus ------- None Cogmind --------- Core Integrity 0/250 Matter 287/300 Energy 265/265 System Corruption 1% Temperature Danger (401) Movement Rolling (190) Ox6 Location -8/Recycling Parts ------- > --- POWER (1) -------- Improved Ion Engine > --- PROPULSION (2) --- Compact Wheel Compact Wheel > --- UTILITY (2) ------ Humpback > --- WEAPON (2) ------- Beam Cannon Subdweller Beam Cannon > --- INVENTORY (35) --- Improved Ion Engine Improved Ion Engine Improved Ion Engine Light Treads Light Treads Light Treads Compact Wheel Compact Wheel Subdweller Monowheel Hover Unit Hover Unit Hover Unit Improved Heat Sink High-capacity Matter Pod (200) Subdweller Optics Seismic Detector Scrap Shield Medium Laser Spread Laser Spread Laser Spread Laser Powered Cannon Subdweller Machine Gun Heavy Battle Rifle Multitool Hammer Ripper Peak State ------------ > --- POWER ------------ Improved Ion Engine > --- PROPULSION ------- Compact Wheel Compact Wheel > --- UTILITY ---------- Humpback > --- WEAPON ----------- Subdweller Beam Cannon Subdweller Machine Gun > --- INVENTORY -------- Improved Ion Engine Improved Ion Engine Improved Ion Engine Light Treads Light Treads Compact Wheel Subdweller Monowheel Hover Unit Hover Unit Hover Unit Improved Heat Sink High-capacity Matter Pod Subdweller Optics Seismic Detector Scrap Shield Medium Laser Spread Laser Spread Laser Spread Laser Beam Cannon Powered Cannon Subdweller Machine Gun Heavy Battle Rifle Multitool Hammer Ripper [Rating: 16] Favorites ----------- Power Improved Ion Engine Engine Improved Ion Engine Propulsion Light Treads Treads Light Treads Leg Aluminum Leg Wheel Compact Wheel Utility Scrap Shield Device Improved Heat Sink Storage Humpback Protection Scrap Shield Weapon Subdweller Machine Gun Energy Gun Spread Laser Energy Cannon Subdweller Beam Cannon Ballistic Gun Subdweller Machine Gun Build | -11 -10 -10 -8 ------- Run | Yrd Mat Sub Rec Slots Evolved . | . . . . Power . | . . . . Propulsion . | . . . . Utility . | . . . . Weapon . | . . . . Parts Attached 21 | 3 9 6 3 Power 2 | . 1 1 . Engine 2 | . 1 1 . Core . | . . . . Reactor . | . . . . Propulsion 5 | 2 . 1 2 Treads 3 | 2 . 1 . Leg . | . . . . Wheel 2 | . . . 2 Hover . | . . . . Flight . | . . . . Utility 5 | 1 2 2 . Device 2 | 1 1 . . Storage 2 | . 1 1 . Processor . | . . . . Hackware . | . . . . Protection 1 | . . 1 . Artifact . | . . . . Weapon 9 | . 6 2 1 Energy Gun 3 | . 3 . . Energy Cannon 5 | . 3 1 1 Ballistic Gun 1 | . . 1 . Ballistic Cannon . | . . . . Launcher . | . . . . Special Weapon . | . . . . Impact Weapon . | . . . . Slashing Weapon . | . . . . Piercing Weapon . | . . . . Special Melee Weapon . | . . . . Unidentified Prototypes . | . . . . Parts Lost 2 | . 1 . 1 Power . | . . . . Propulsion . | . . . . Utility 1 | . 1 . . Weapon 1 | . . . 1 Highest Loss Streak 1 | . 1 . 1 To Critical Strikes 1 | . . . 1 Average Backups 11 | 6 13 9 26 Power 2 | 1 5 1 3 Propulsion 3 | 4 4 2 7 Utility 1 | . 1 1 5 Weapon 3 | 1 3 3 9 Tool/Special . | . . . . Unused Backups 34 | . 7 6 21 Power 5 | . . 3 2 Propulsion 9 | . . 2 7 Utility 5 | . 2 . 3 Weapon 14 | . 5 1 8 Tool/Special 1 | . . . 1 Average Slot Usage (%) 88 | . 99 85 85 Engine 14 | . 14 14 14 Treads 26 | . 28 28 9 Wheel 1 | . . . 18 Device 3 | . 13 . . Storage 8 | . 14 6 14 Protection 5 | . . 7 . Energy Gun 7 | . 17 5 . Energy Cannon 10 | . 10 10 14 Ballistic Gun 9 | . . 12 14 Peak Build Rating 16 | 9 14 15 16 Average Rating 12 | 6 11 12 15 On Entrance 11 | 6 9 14 15 Avg Prop Armor Cover (%) . | . . . . Naked Turns . | . . . . Heaviest Build 219 | 13 54 219 219 Greatest Support 40 | 40 40 40 40 Greatest Overweight (x) 13 | . 1 5 13 Average Overweight (x) 1 | . . . 5 Largest Inventory Capacity 35 | 8 20 35 35 Average Capacity 18 | 8 17 17 35 Most Carried 30 | 6 20 26 30 Average Carried 12 | 5 14 10 28 Final Capacity 35 | 8 20 35 35 Final Carried 29 | 4 20 26 29 Class Distribution -------------------- 42% | Mutant 35% | Hauler-Mutant 21% | Subdweller-Mutant Dominant Class ---------------- Mutant | -10/Materials Hauler-Mutant | -10/Subcaves Hauler-Mutant | -8/Recycling Resources | -11 -10 -10 -8 ----------- Run | Yrd Mat Sub Rec Matter Collected 729 | 210 349 132 38 Remotely . | . . . . Salvage Created 1613 | 101 541 400 571 Parts 97 | 5 40 32 20 Haulers Intercepted 1 | . 1 . . Recyclers Shooed 1 | 1 . . . Parts Field Recycled . | . . . . Retrieved Matter . | . . . . Parts Self-Destructed 19 | . . 19 . Prevented . | . . . . Parts Restored . | . . . . Kills | -11 -10 -10 -8 ------- Run | Yrd Mat Sub Rec Combat Hostiles Destroyed 27 | . 13 10 4 Guns 14 | . 7 7 . Cannons 12 | . 6 3 3 Classes Destroyed 13 | 2 7 2 2 Worker 2 | . 2 . . Builder 1 | . 1 . . Tunneler 1 | 1 . . . Hauler 1 | . 1 . . Recycler 6 | 1 . . 5 Operator 2 | . 2 . . Watcher 3 | . 3 . . Swarmer 9 | . 6 3 . Grunt 7 | . 7 . . Sentry 3 | . . . 3 Programmer 1 | . . . 1 Artisan 1 | . . 1 . Subdweller 7 | . . 7 . Best Kill Streak 6 | 2 6 3 4 Combat Bots Only 4 | . 4 3 4 Max Kills in Single Turn 3 | 1 3 1 1 Gunslinging . | . . . . Exploded . | . . . . Melee . | . . . . Uniques/NPCs Destroyed . | . . . . Combat | -11 -10 -10 -8 -------- Run | Yrd Mat Sub Rec Hostile Shots Fired 121 | . 42 65 14 Missed 31 | . 10 20 1 Hits 90 | . 32 45 13 Melee 2 | . . . 2 Projectile 88 | . 32 45 11 Critical Strikes 2 | . . 1 1 Damage Taken 1253 | . 395 634 224 Core 260 | . 122 63 75 Absorbed by Shields . | . . . . Core Remaining (%) 100 | 100 . . . Volleys Fired 123 | 8 52 46 17 Largest 2 | 2 2 2 2 Hottest 140 | 100 130 130 140 Shots Fired 215 | 16 96 71 32 Gun 160 | 16 75 56 13 Cannon 55 | . 21 15 19 Launcher . | . . . . Special . | . . . . Kinetic 34 | . . 21 13 Thermal 181 | 16 96 50 19 Explosive . | . . . . Electromagnetic . | . . . . Robot Hit Streak 14 | 4 7 14 11 Robot Miss Streak 3 | 2 3 3 1 Penetration Max . | . . . . Secondary Targets . | . . . . Shots Hit Robots 142 | 10 56 52 24 Core Hits 87 | 2 28 49 8 Critical Kills 1 | . . . 1 Critical Parts Destroyed . | . . . . Critical Strikes 2 | 1 . . 1 Burn 1 | 1 . . . Meltdown 1 | . . . 1 Melee Attacks . | . . . . Impact . | . . . . Slashing . | . . . . Piercing . | . . . . Sneak Attacks . | . . . . Combat Hostiles . | . . . . Follow-up Attacks . | . . . . Damage Inflicted 2885 | 122 1217 935 611 Guns 1589 | 122 566 691 210 Cannons 878 | . 233 244 401 Explosions 404 | . 404 . . Melee . | . . . . Ramming 14 | . 14 . . Kinetic 387 | . . 177 210 Thermal 2484 | 122 1203 758 401 Explosive . | . . . . Electromagnetic . | . . . . Impact . | . . . . Slashing . | . . . . Piercing . | . . . . Highest Corruption 1 | . . . 1 Average Corruption 1 | . . . 1 Corruption Purged . | . . . . Corruption Blocked . | . . . . Overload Shots . | . . . . Overflow Damage 44 | . 21 . 23 Projectiles 23 | . . . 23 Explosions 21 | . 21 . . Melee . | . . . . Knockbacks . | . . . . Impact . | . . . . Kinetic . | . . . . Secondary . | . . . . Self-Inflicted Damage 65 | . 65 . . Shots 1 | . 1 . . Rammed 4 | . 4 . . Targets Rammed 4 | . 4 . . Kicked . | . . . . Crushed . | . . . . Highest Temperature 407 | 195 407 72 401 Average Temperature 116 | 102 139 21 109 Received Heat Transfer 249 | . 141 72 36 Effects 3 | . 3 . . Energy Bleed 1 | . 1 . . Interference 1 | . 1 . . Matter Decay 1 | . 1 . . Siege Activations . | . . . . Martial Activations . | . . . . Shielding Activations . | . . . . Robots Disrupted . | . . . . Combat Hostiles . | . . . . Robots Corrupted . | . . . . Combat Hostiles . | . . . . Parts Fried . | . . . . Impact Corruptions . | . . . . Robots Melted 3 | 1 1 . 1 Combat Hostiles 1 | . . . 1 Parts Melted 12 | . 10 . 2 Heat Transferred 4341 | 444 2359 983 555 Parts Sabotaged . | . . . . Parts Stolen . | . . . . Parts Stripped . | . . . . Power Chain Reactions . | . . . . Alert | -11 -10 -10 -8 ------- Run | Yrd Mat Sub Rec Maximum Alert Level . | . . . . Low Security (%) 100 | 100 100 . 100 Level 1 . | . . . . Level 2 . | . . . . Level 3 . | . . . . Level 4 . | . . . . Level 5 . | . . . . High Security . | . . . . Max Security . | . . . . Peak Influence 194 | 5 194 . 63 Initial 14 | . . . 14 Average 72 | 1 91 . 4 Influence Increases 817 | 10 563 105 139 Destroy 0b10 Robot/C 400 | . 260 60 80 Destroy 0b10 Robot/NC 80 | 10 45 . 25 Destroy Leader 68 | . 68 . . Successful Hack 18 | . 18 . . Select Force Hacks 90 | . 60 . 30 Disable Machine 90 | . 90 . . Destroy Structure 26 | . 22 . 4 Lose Combat Pursuer 45 | . . 45 . Influence Decreases 754 | 10 562 76 106 Entered New Map 17 | . . 1 16 Time Decay 717 | 10 552 75 80 Lost Part 20 | . 10 . 10 Squads Dispatched 4 | . 4 . . Investigation 2 | . 2 . . Extermination . | . . . . Reinforcement 2 | . 2 . . Assault . | . . . . Garrison . | . . . . Intercept . | . . . . Searches Triggered . | . . . . Construction Impeded . | . . . . Haulers Reinforced . | . . . . Active Scanning Responses . | . . . . Cargo Convoy Interrupts . | . . . . Stealth | -11 -10 -10 -8 --------- Run | Yrd Mat Sub Rec Distress Signals 1 | . 1 . . Communications Jammed . | . . . . Distress Signals . | . . . . Times Spotted 37 | . 18 14 5 Peak Tracking Total 6 | . 4 6 5 Tactical Retreats 1 | . . 1 . Traps | -11 -10 -10 -8 ------- Run | Yrd Mat Sub Rec Traps Triggered . | . . . . Indirectly . | . . . . Trap Hack Attempts . | . . . . Triggered . | . . . . Disarmed . | . . . . Reprogrammed . | . . . . Reused . | . . . . Traps Extracted . | . . . . Installed . | . . . . Triggered . | . . . . Machines | -11 -10 -10 -8 ---------- Run | Yrd Mat Sub Rec Machines Disabled 7 | . 6 1 . Max in Single Turn 5 | . 5 1 . Machines Repaired . | . . . . Machines Dismantled . | . . . . Machines Sabotaged . | . . . . Overloaded Fab Kills . | . . . . Hacking | -11 -10 -10 -8 --------- Run | Yrd Mat Sub Rec Machines Accessed 11 | . 8 1 2 Terminals 7 | . 6 . 1 Fabricators . | . . . . Repair Stations . | . . . . Recycling Units 3 | . 2 . 1 Scanalyzers . | . . . . Garrison Access . | . . . . Total Hacks 25 | . 13 9 3 Successful 21 | . 10 9 2 Failed 4 | . 3 . 1 Catastrophic 1 | . . . 1 Database Lockouts . | . . . . Manual 16 | . 14 . 2 Terminals 12 | . 11 . 1 Fabricators . | . . . . Repair Stations . | . . . . Recycling Units 4 | . 2 . 2 Scanalyzers . | . . . . Garrison Access . | . . . . Terminal Hacks 10 | . 1 9 . Record 8 | . . 8 . Robot Analysis 1 | . 1 . . Proto ID Catalog 1 | . . 1 . Fabricator Hacks . | . . . . Repair Station Hacks . | . . . . Recycling Unit Hacks 1 | . . . 1 Retrieve Components 1 | . . . 1 Scanalyzer . | . . . . Garrison Access Hacks . | . . . . Unauthorized Hacks 10 | . 9 . 1 Terminals 7 | . 7 . . Botnet 1 | . 1 . . Operators 1 | . 1 . . Skim 5 | . 5 . . Fabricators . | . . . . Repair Stations . | . . . . Recycling Units 3 | . 2 . 1 Tunnel 3 | . 2 . 1 Scanalyzers . | . . . . Garrison Access . | . . . . Data Cores Recovered . | . . . . Used . | . . . . Hacking Detections 6 | . 4 . 2 Full Trace Events . | . . . . Feedback Events . | . . . . Feedback Blocked . | . . . . Robot Schematics Acquired . | . . . . Robots Built . | . . . . Authchips . | . . . . Time . | . . . . Total Robot Build Rating . | . . . . Part Schematics Acquired . | . . . . Parts Built . | . . . . Authchips . | . . . . Time . | . . . . Total Part Build Rating . | . . . . Part Studies Acquired . | . . . . Parts Repaired . | . . . . Time . | . . . . Parts Recycled . | . . . . Recycled Matter . | . . . . Retrieved Matter . | . . . . Retrieved Components 10 | . . . 10 Parts Scanalyzed . | . . . . Part Schematics Acquired . | . . . . Parts Damaged . | . . . . Bothacking | -11 -10 -10 -8 ------------ Run | Yrd Mat Sub Rec Used RIF Installer . | . . . . Robots Hacked . | . . . . Non-combat . | . . . . Combat . | . . . . Robot Hacks Applied . | . . . . Relay Couplers Released . | . . . . Fabnet Peak Effective % . | . . . . Robots Rewired . | . . . . Allies Hacked . | . . . . Hacks Repelled . | . . . . Allies | -11 -10 -10 -8 -------- Run | Yrd Mat Sub Rec Total Allies . | . . . . Largest Group . | . . . . Highest-Rated Group . | . . . . Highest-Rated Ally . | . . . . Total Orders . | . . . . Ally Attacks . | . . . . Total Damage . | . . . . Kills . | . . . . Allies Corrupted . | . . . . Allies Melted . | . . . . Intel | -11 -10 -10 -8 ------- Run | Yrd Mat Sub Rec Active Infowar (turns) 828 | 11 817 . . Terrain 828 | 11 817 . . Robot Analysis Total 1 | . 1 . . Derelict Logs Recovered 2 | . . 2 . Drone Launches . | . . . . Drone Recoveries . | . . . . Exploration | -11 -10 -10 -8 ------------- Run | Yrd Mat Sub Rec Turns Passed 7508 | 48 1866 5121 473 Spaces Moved 2990 | 17 736 2060 177 Core . | . . . . Treads 2818 | 1 736 2060 21 Legs 16 | 16 . . . Wheels 156 | . . . 156 Hover . | . . . . Flight . | . . . . Fastest Speed 120 | 120 160 160 190 Average Speed 231 | 122 224 235 234 Slowest Speed 560 | 160 240 560 560 Overloaded Moves . | . . . . Propulsion Burnouts . | . . . . Robots Hopped . | . . . . Potential Cave-ins . | . . . . Cave-ins Triggered . | . . . . Exploration Rate (%) 47 | 3 89 64 34 Regions Visited 3 Branch Regions 2 Pre-discovered Areas 6 | . 4 1 1 Known Exits Taken 2 | . 1 1 . Unknown Exits Taken 1 | 1 . . . Scrap Searched 3 | . . 3 . Spaces Dug 3 | . . 3 . Terrain Destroyed 29 | . 22 4 3 Melee . | . . . . Projectile 7 | . . 4 3 AOE 22 | . 22 . . Terrain Rammed . | . . . . Walls Destroyed . | . . . . Machines Disabled . | . . . . Actions | -11 -10 -10 -8 --------- Run | Yrd Mat Sub Rec Total 3358 | 29 852 2275 202 Wait 141 | . 34 106 1 Move 2987 | 16 735 2059 177 Hop . | . . . . Pick Up 46 | . 15 27 4 Fast Attach 5 | 1 1 3 . Attach 4 | 2 . 1 1 Detach . | . . . . Swap 12 | . 8 2 2 Drop 32 | 2 3 27 . Fire 123 | 8 52 46 17 Melee . | . . . . Ram . | . . . . Kick . | . . . . Crush 4 | . 4 . . Escape Stasis . | . . . . Rewire . | . . . . Trap . | . . . . Miscellaneous 4 | . . 4 . Route ------- -11/Scrapyard -10/Materials (discovered 6 exits: [*Mat x3] / *Min x2 / *Sub) -10/Subcaves (discovered 2 exits: [*Mat] / *Rec) -8/Recycling History --------- Turn | Location | Event 16 | -11/Scrapyard | Discovered new exit (range 3) 49 | -11/Scrapyard | Entered Materials 316 | -10/Materials | Build established: Mutant 329 | -10/Materials | Discovered new exit (range 10) 671 | -10/Materials | Discovered new exit (range 16) 1376 | -10/Materials | Discovered new exit (range 8) 1470 | -10/Materials | Learned 4 Subcaves zone layouts 1489 | -10/Materials | Discovered new exit (range 8) 1563 | -10/Materials | Learned location of 1 exit from Storage 1574 | -10/Materials | Learned location of 1 exit from Storage 1583 | -10/Materials | Identified exit to Mines 1583 | -10/Materials | Identified exit to Subcaves 1915 | -10/Materials | Entered Subcaves 1916 | -10/Subcaves | Ambushed by Subdwellers from Twisted Machinery 1916 | -10/Subcaves | Identified exit to Recycling 1922 | -10/Subcaves | Core integrity fell below 50% 1962 | -10/Subcaves | Shifting Twisted Machinery released Scrap Shield 1969 | -10/Subcaves | Shifting Twisted Machinery released Hvy. Battle Rifle 2141 | -10/Subcaves | Visited 4L-MR0's lab 2888 | -10/Subcaves | Discovered new exit (range 8) 2936 | -10/Subcaves | Learned Materials terminal intel 3519 | -10/Subcaves | Build established: Subdweller-Mutant 4133 | -10/Subcaves | A swath of the cavern ceiling suddenly collapsed 5168 | -10/Subcaves | Build established: Hauler-Mutant 5480 | -10/Subcaves | Found Powered Cannon 7036 | -10/Subcaves | Entered Recycling 7496 | -8/Recycling | Core integrity fell below 20% 7509 | -8/Recycling | Destroyed by L-31 Rogue with Katana Last Messages --------------- Hrd. Medium Armor Plating >>Force(Tunnel) DISCOVERED[-4/Archives] 07484_ Y-45 Defender springs to life. 07484_ P-60 Hacker springs to life. 07485_ L-31 Rogue springs to life. 07485_ Y-45 Defender springs to life. 07489_ Y-45 Defender suffers critical hit (Meltdown). 07489_ Beam Rifle melted. 07489_ Heat Sink melted. 07495_ Y-45 Defender destroyed. 07498_ Destroyed Lgt. Armor Plating. 07500_ Critical hit (Destroy). 07500_ Sub. Machine Gun destroyed. 07502_ Y-45 Defender destroyed. 07502_ U-05 Engineer builds a Door. 07505_ P-60 Hacker destroyed. 07508_ Sub. Beam Cannon shoots sparks and powers down. Map ----- +----------------------------------------------------+ | ?????????????????????????????????????????????????? | | ?????????????????????????????????????????????????? | | ?????????????????????????????????????????????????? | | ?????????????????????????????????????????????????? | | ?????????????????????????????????????????????????? | | ?????????????????????????????????????????????????? | | ?????????????????????????????????????????????????? | | ?????????????????????????????????????????????????? | | ?????????????????????????????????????????????????? | | ?????????????????????????????????????????????????? | | ?????????????????????????????????????????????????? | | ?????????????????????????????????????????????????? | | ?????????????????????????????????????????????????? | | ####?????????????????????????????????????????????? | | ????????????????????????????????????????????? | | ????????????????????????????????????????????? | | ????????????????????????????????????????????? | | ????????????????????????????????????????????? | | ?########+##+##?????????????????????????????? | | ??# #?????????????????????????????? | | ??# #?????????????????????????????? | | #??# #?????????????????????????????? | | #??# #####+#########???????????????? | | /#### # #???????????????? | | =*""## r r ! #???????????????? | | !*Y"## # *%@= #???????????????? | | !!!""## # ##l##### #???????????????? | | !!#### # #=% ???????????????????????? | | #### # k% ???????????????????????? | | + # ## ??????????????????????? | | ####### # # =!??????????????????????? | | #?????########+##### ##] !!#?????????????????????? | | #????????????# #???# ## !#?????????????????????? | | ?????????????# #???# ## ! #?????????????????????? | | ## ######????# #???# ## #?????????????????????? | | # ??# #???# ## #?????????????????????? | | # # ##### ## = #?????????????????????? | | # + ##! ! #?????????????????????? | | # # #? =#?????????????????????? | | # ??# " #? ] #?????????????????????? | | #########????# """ #?####??????????????????????? | | ?????????????# """ #???????????????????????????? | | ?????????????# """ #???????????????????????????? | | ???########### "" #???#####???????????????????? | | ???# # """ ##### #???????????????????? | | ???# # "" # #???????????????????? | | ???# # """ # ### #???????????????????? | | ???# """"" # " # #######???????????????????? | | ???# """"" # #????????????????????????? | | ???# """"" + #????????????????????????? | +----------------------------------------------------+ Best States ------------- Heat Dissipation 39 Energy Generation 12 Energy Capacity 265 Matter Stores 300 Matter Capacity 300 Sight Range 16 Terrain Scan Range 16 Terrain Scan Density 10 Armor Coverage 800 Evasion (%) 41 Recoil Reduction 2 Item Schematics ----------------- None Robot Schematics ------------------ None Fabricated ------------ Nothing Repaired ---------- Nothing Studied --------- None Alien Tech Used ----------------- None Achievements -------------- None Challenges ------------ None Game ------ Seed MappingCarbideSlamshotty Manual? 0 Play Time 00:20:34 Cumulative 429.9 hours Start 2026.04.29 @ 00:06:59 End 2026.04.29 @ 00:53:34 Sessions 1 Manual Loads 0 Difficulty Rogue Special Mode None Game No. 364 Rogue 328 Adventurer 36 Explorer 0 Win Type - Total 5 Types 2/0/0/1/0/0/0/2/0/0 Lore% 79 Gallery% 69 Achievement% 59 Wizard Run 0 Options --------- Layout 1 ASCII 0 Keyboard 0 Movement Numpad Keybinds 0 Fullscreen 1 Font 48/Smallcaps Map View 50x35 Zoom Use 0% Tactical HUD 1 Map Filters NONE Filters NONE Steam 1 RUN: 82a94d5f-ec1c-4292-b16d-bf933953a686